lending/lending_fUSD_20260312
["ID","MTS","AMOUNT","RATE_DAILY","PERIOD"]
[408289234,1773355847545,-500.0,0.00019999,2]
[408289235,1773355847554,-500.0,0.00019999,2]
[408289236,1773355847564,-548.09996795,0.00019999,2]
[408289237,1773355847574,-500.0,0.00019999,2]
[408289238,1773355847583,-500.0,0.00019999,2]
[408289239,1773355847593,-500.0,0.00019999,2]
[408289240,1773355847602,-500.0,0.00019999,2]
[408289241,1773355847612,-484.25426362,0.00019999,2]
[408289242,1773355847621,-500.0,0.00019999,2]
[408289243,1773355847631,-500.0,0.00019999,2]
[408289244,1773355847640,-500.0,0.00019999,2]
[408289245,1773355847650,-500.0,0.00019999,2]
[408289246,1773355847660,-500.0,0.00019999,2]
[408289247,1773355847670,-500.0,0.00019999,2]
[408289248,1773355847680,-500.0,0.00019999,2]
[408289249,1773355847690,-500.0,0.00019999,2]
[408289250,1773355847699,-500.0,0.00019999,2]
[408289251,1773355847709,-500.0,0.00019999,2]
[408289252,1773355847718,-595.88,0.00019999,2]
[408289253,1773355847728,-595.88,0.00019999,2]
[408289254,1773355847738,-595.88,0.00019999,2]
[408289255,1773355847747,-595.88,0.00019999,2]
[408289256,1773355847757,-596.07,0.00019999,2]
[408289257,1773355847766,-558.0,0.0002,2]
[408289258,1773355847775,-1167186.59237771,0.0002,2]
[408289259,1773355847785,-496.43357262,0.0002,2]
[408289260,1773355847794,-1258187.31133987,0.0002,2]
[408289261,1773355848026,-264.56333182,0.0002,2]
[408289262,1773355848037,-2478.0,0.0002,2]
[408289263,1773355848049,-24402.92770591,0.0002,2]
[408289264,1773355848131,-168.31078242,0.00018543,2]
[408289265,1773355848140,-168.31078242,0.000199,2]
[408289266,1773355848149,-163.37843516,0.0002,2]
[408289267,1773355848303,-1733.32,0.0002,2]
[408289268,1773355848314,-697.9745699,0.0002,2]
[408289269,1773355848603,-660.08,0.0002,2]
[408289270,1773355861771,10000.01,0.00014313,2]
[408289271,1773355861796,10000.01,0.00014313,2]
[408289272,1773355861819,10000.01,0.00014313,2]
[408289273,1773355861846,10000.01,0.00014313,2]
[408289274,1773355861869,10000.01,0.00014313,2]
[408289275,1773355861892,10000.01,0.00014313,2]
[408289276,1773355861916,10000.01,0.00014313,2]
[408289277,1773355861939,10000.01,0.00014313,2]
[408289278,1773355861964,5000.01,0.00014313,2]
[408289279,1773355870255,151.0,0.0001431,2]
[408289280,1773355870572,-7426.51520443,0.00014313,2]
[408289281,1773355870626,151.0,0.0001431,2]
[408289282,1773355870696,-10000.01,0.00014313,2]
[408289283,1773355870799,-10000.01,0.00014313,2]
[408289284,1773355870911,-10000.01,0.00014313,2]
[408289285,1773355871046,-10000.01,0.00014313,2]
[408289286,1773355871159,-10000.01,0.00014313,2]
[408289287,1773355871277,-10000.01,0.00014313,2]
[408289288,1773355871428,-10000.01,0.00014313,2]
[408289289,1773355876584,500.0,0.00014312,2]
[408289290,1773355876844,500.0,0.00014312,2]
[408289291,1773355877183,500.0,0.00014312,2]
[408289292,1773355877491,500.0,0.00014312,2]
[408289293,1773355886255,500.0,0.00014312,2]
[408289294,1773355886461,500.0,0.00014312,2]
[408289295,1773355886535,500.0,0.00014312,2]
[408289296,1773355886572,500.0,0.00014312,2]
[408289297,1773355886644,500.0,0.00014312,2]
[408289298,1773355886680,198.01,0.00014312,2]
[408289299,1773355888424,-301.99,0.00014312,2]
[408289300,1773355888457,-500.0,0.00014312,2]
[408289301,1773355888489,-500.0,0.00014312,2]
[408289302,1773355888521,-321.89393536,0.00014312,2]
[408289303,1773355888551,-500.0,0.00014312,2]
[408289304,1773355888582,-252.24212928,0.00014312,2]
[408289305,1773355891291,-247.75787072,0.00014312,2]
[408289306,1773355891330,-500.0,0.00014312,2]
[408289307,1773355891370,-500.0,0.00014312,2]
[408289308,1773355891409,-500.0,0.00014312,2]
[408289309,1773355891446,-500.0,0.00014312,2]
[408289310,1773355891482,-4.49425856,0.00014312,2]
[408289311,1773355894434,-1781.785,0.00014026,2]
[408289312,1773355894463,-172.089,0.00014026,2]
[408289313,1773355894496,-495.50574144,0.00014312,2]
[408289314,1773355897288,-500.0,0.00014312,2]
[408289315,1773355897324,-500.0,0.00014312,2]
[408289316,1773355897357,-500.0,0.00014312,2]
[408289317,1773355897389,-500.0,0.00014312,2]
[408289318,1773355897419,-500.0,0.00014312,2]
[408289319,1773355900479,-500.0,0.00014312,2]
[408289320,1773355900510,-500.0,0.00014312,2]
[408289321,1773355900542,-500.0,0.00014312,2]
[408289322,1773355900572,-500.0,0.00014312,2]
[408289323,1773355900602,-500.0,0.00014312,2]
[408289324,1773355903337,-815.99709557,0.00014312,2]
[408289325,1773355903369,-500.0,0.00014312,2]
[408289326,1773355903403,-500.0,0.00014312,2]
[408289327,1773355903434,-500.0,0.00014312,2]
[408289328,1773355906508,-500.0,0.00014312,2]
[408289329,1773355906541,-500.0,0.00014312,2]
[408289330,1773355906572,-500.0,0.00014312,2]
[408289331,1773355906603,-500.0,0.00014312,2]
[408289332,1773355906634,-500.0,0.00014312,2]
[408289333,1773355906936,231.02580488,0.0001,2]
[408289334,1773355909365,-500.0,0.00014312,2]
[408289335,1773355909397,-500.0,0.00014312,2]
[408289336,1773355909428,-500.0,0.00014312,2]
[408289337,1773355909460,-500.0,0.00014312,2]
[408289338,1773355909492,-500.0,0.00014312,2]
[408289339,1773355912487,-500.0,0.00014312,2]
[408289340,1773355912519,-500.0,0.00014312,2]
[408289341,1773355912548,-500.0,0.00014312,2]
[408289342,1773355912577,-500.0,0.00014312,2]
[408289343,1773355912605,-500.0,0.00014312,2]
[408289344,1773355915511,-500.0,0.00014312,2]
[408289345,1773355915541,-500.0,0.00014312,2]
[408289346,1773355915573,-500.0,0.00014312,2]
[408289347,1773355915607,-500.0,0.00014312,2]
[408289348,1773355915637,-500.0,0.00014312,2]
[408289349,1773355918529,-796.70640868,0.00014213,2]
[408289350,1773355921405,-1593.41281736,0.00014213,2]
[408289351,1773355924419,-183.16525787,0.00014212,2]
[408289352,1773355924449,-367.1844389,0.00014213,2]
[408289353,1773355924477,-1813.18436528,0.00014213,2]
[408289354,1773355927582,-500.0,0.00014213,2]
[408289355,1773355927609,-183.16525787,0.00014213,2]
[408289356,1773355927636,-300.0,0.00014237,2]
[408289357,1773355928070,10000.01,7.945e-05,2]
[408289358,1773355928092,4384.545196,7.945e-05,2]
[408289359,1773355930480,-211.07,0.00014237,7]
[408289360,1773355930508,-600.0,0.00014237,2]
[408289361,1773355933476,-0.01,0.00014262,2]
[408289362,1773355936503,-0.02,0.00014262,2]
[408289363,1773355938721,500.0,9.313e-05,2]
[408289364,1773355939500,-1500.01,0.000136,4]
[408289365,1773355940119,500.0,9.313e-05,2]
[408289366,1773355940387,500.0,9.313e-05,2]
[408289367,1773355940753,500.0,9.313e-05,2]
[408289368,1773355940899,500.0,9.313e-05,2]
[408289369,1773355941137,500.0,9.313e-05,2]
[408289370,1773355941432,666.81615069,9.313e-05,2]
[408289371,1773355941641,500.0,9.313e-05,2]
[408289372,1773355942140,500.0,9.313e-05,2]
[408289373,1773355942550,-1999.99,0.000136,4]
[408289374,1773355943121,500.0,9.313e-05,2]
[408289375,1773355943599,448.64865331,9.313e-05,2]
[408289376,1773355943622,288.5607999,9.313e-05,2]
[408289377,1773355945232,500.0,9.313e-05,2]
[408289378,1773355945710,500.0,9.313e-05,2]
[408289379,1773355946135,500.0,9.313e-05,2]
[408289380,1773355946805,500.0,9.313e-05,2]
[408289381,1773355947128,626.88943299,9.313e-05,2]
[408289382,1773355948504,500.0,8.6e-05,2]
[408289383,1773355949023,500.0,8.6e-05,2]
[408289384,1773355949907,500.0,8.6e-05,2]
[408289385,1773355950369,500.0,8.6e-05,2]
[408289386,1773355950908,500.0,8.6e-05,2]
[408289387,1773355951340,660.25289702,8.6e-05,2]
[408289388,1773355951383,500.0,8.6e-05,2]
[408289389,1773355951595,500.0,8.6e-05,2]
[408289390,1773355952055,500.0,8.6e-05,2]
[408289391,1773355952379,690.01546365,8.6e-05,2]
[408289392,1773355952524,500.0,8.6e-05,2]
[408289393,1773355953059,500.0,8.6e-05,2]
[408289394,1773355953539,507.65021538,8.6e-05,2]
[408289395,1773355953744,226.64119106,8.6e-05,2]
[408289396,1773355953766,273.35880894,8.6e-05,2]
[408289397,1773355954254,507.45359249,8.6e-05,2]
[408289398,1773355957657,-169.83055733,0.000137,5]
[408289399,1773355960688,-5000.01,0.000137,5]
[408289400,1773355963876,-1930.15944267,0.000137,5]
[408289401,1773355963910,-1139.69111466,0.000138,5]
[408289402,1773355966741,-5000.01,0.000138,5]
[408289403,1773355969952,-539.71111466,0.000138,5]
[408289404,1773355969975,-3920.58777068,0.000138,5]
[408289405,1773355973060,-5000.01,0.000139,5]
[408289406,1773355975967,-5000.01,0.000139,5]
[408289407,1773355981870,-800.03,0.000139,5]
[408289408,1773355981896,-3399.95,0.000139,5]
[408289409,1773355985063,-250.0,0.00014031,2]
[408289410,1773355985091,-250.0,0.00014161,2]
[408289411,1773355985149,-4000.01,0.00014162,2]
[408289412,1773355985434,-5000.01,0.00014162,2]
[408289413,1773355985466,-95.17082075,0.00014162,2]
[408289414,1773355985491,-4809.6683585,0.00014162,2]
[408289415,1773355985517,-5000.01,0.00014199,2]
[408289416,1773355985609,-5000.01,0.00014199,2]
[408289417,1773355985725,-5000.01,0.00014199,2]
[408289418,1773355985817,-5000.01,0.00014199,2]
[408289421,1773355994051,-5000.01,0.00014199,2]
[408289422,1773355997007,-5000.01,0.00014199,2]
[408289423,1773355997255,-5000.01,0.00014199,2]
[408289424,1773355997400,-5000.01,0.00014199,2]
[408289425,1773355997501,-5000.01,0.00014199,2]
[408289426,1773355997613,-5000.01,0.00014199,2]
[408289427,1773355997747,-5000.01,0.00014199,2]
[408289429,1773356052757,336929.36116366,0.0002,120]
[408289430,1773356052778,63070.63883634,0.0002,120]
[408289431,1773356237054,500.0,8.6e-05,2]
[408289432,1773356237394,500.0,8.6e-05,2]
[408289433,1773356237546,500.0,8.6e-05,2]
[408289434,1773356237908,500.0,8.6e-05,2]
[408289435,1773356238459,726.63,8.6e-05,2]
[408289436,1773356238800,500.0,8.6e-05,2]
[408289437,1773356239267,500.0,8.6e-05,2]
[408289438,1773356239760,500.0,8.6e-05,2]
[408289439,1773356240551,500.0,8.6e-05,2]
[408289440,1773356241059,500.0,8.6e-05,2]
[408289441,1773356241533,500.0,8.6e-05,2]
[408289442,1773356242049,500.0,8.6e-05,2]
[408289443,1773356242537,601.56911435,8.6e-05,2]
[408289444,1773356246707,500.0,8.6e-05,2]
[408289445,1773356247188,662.0,8.6e-05,2]
[408289446,1773356250422,500.0,8.6e-05,2]
[408289447,1773356348871,521.94548116,0.0001269,2]
[408289448,1773356366844,987.86540449,0.000108,2]
[408289449,1773356366870,45.1989762,0.000108,2]
[408289450,1773356394380,9954.8110238,0.0001199,2]
[408289451,1773356394405,10000.01,0.0001199,2]
[408289452,1773356394429,10000.01,0.0001199,2]
[408289453,1773356394454,9569.70141388,0.0001199,2]
[408289454,1773356401797,6369.77362381,8e-05,2]
[408289455,1773356405696,3630.23637619,0.00011,2]
[408289456,1773356405720,5841.40233907,0.00011,2]
[408289460,1773356471962,205.0,9.8e-05,2]
[408289461,1773356475922,261.09186064,0.000101,2]
[408289462,1773356478211,262.10086342,0.0001,2]
[408289463,1773356493829,200.0,0.000101,2]
[408289464,1773356536885,500.0,8.6e-05,2]
[408289465,1773356537941,393.32880251,7.888e-05,2]
[408289466,1773356546849,500.0,8.6e-05,2]
[408289467,1773356549017,829.73346161,8.6e-05,2]
[408289475,1773356556725,30896.6719325,9.5e-05,3]
[408289476,1773356556752,12238.89873735,9.5e-05,3]
[408289477,1773356557399,4241.49304115,0.0001,2]
[408289478,1773356559283,347.88829078,0.0001,2]
[408289481,1773356587192,3638.060706,0.00012706,2]
[408289482,1773356663336,1852.42,0.00012767,2]
[408289483,1773356796108,173.74838973,0.00012674,2]
[408289484,1773356836608,500.0,8.6e-05,2]
[408289485,1773356836648,627.73978365,8.6e-05,2]
[408289486,1773356837109,924.26076055,8.6e-05,2]
[408289487,1773356837772,848.9963962,8.6e-05,2]
[408289488,1773356841463,500.0,8.6e-05,2]
[408289489,1773356842451,687.73685514,8.6e-05,2]
[408289490,1773356843873,247.04710873,8.6e-05,2]
[408289491,1773356843899,252.95289127,8.6e-05,2]
[408289492,1773356844353,645.18499649,8.6e-05,2]
[408289493,1773356849829,537.77917638,8.6e-05,2]
[408289495,1773356949436,4258.16,6.199e-05,2]
[408289496,1773356949650,4258.16,6.525e-05,2]
[408289497,1773356949874,47.77293586,6.851e-05,2]
[408289498,1773356949900,4210.38706414,6.851e-05,2]
[408289499,1773356950075,4258.16,7.178e-05,2]
[408289500,1773356950291,1531.46293586,7.504e-05,2]
[408289501,1773356950315,2726.69706414,7.504e-05,2]
[408289502,1773356950511,4258.16,7.83e-05,2]
[408289503,1773356950740,3015.15293586,8.156e-05,2]
[408289504,1773356950765,1243.00706414,8.156e-05,2]
[408289505,1773356950964,4258.16,8.483e-05,2]
[408289506,1773356951195,4258.16,8.809e-05,2]
[408289507,1773356951455,240.68293586,9.135e-05,2]
[408289508,1773356951480,4017.47706414,9.135e-05,2]
[408289509,1773356951666,4258.16,9.461e-05,2]
[408289510,1773356951874,1724.37293586,9.788e-05,2]
[408289511,1773356951898,2533.78706414,9.788e-05,2]
[408289512,1773356952079,4258.16,0.00010114,2]
[408289513,1773356952284,3208.06293586,0.0001044,2]
[408289514,1773356952309,1050.09706414,0.0001044,2]
[408289515,1773356952482,4258.16,0.00010766,2]
[408289516,1773356952705,4258.16,0.00011093,2]
[408289517,1773356952910,433.59293586,0.00011419,2]
[408289518,1773356952933,3824.56706414,0.00011419,2]
[408289519,1773356953150,4258.16,0.00011745,2]
[408289520,1773356953360,1917.28293586,0.00012071,2]
[408289521,1773356953384,2340.87706414,0.00012071,2]
[408289522,1773356953570,4258.16,0.00012398,2]
[408289523,1773356997757,1435.41,0.00012368,2]
[408289524,1773357003819,255.0,0.0001277,2]
[408289549,1773357032100,-208.36416367,0.0001277,2]
[408289551,1773357032109,-137.56723633,0.00012771,2]
[408289557,1773357032168,-4862.43276367,0.00012771,2]
[408289558,1773357032178,-193.0,0.00012772,2]
[408289559,1773357032187,-300.0,0.00012773,2]
[408289560,1773357032196,-300.0,0.00012773,2]
[408289561,1773357032205,-1200.0,0.00012773,2]
[408289562,1773357032214,-300.0,0.00012773,2]
[408289563,1773357032223,-2819.44647875,0.00012774,2]
[408289564,1773357032235,-2180.55352125,0.00012774,2]
[408289565,1773357032245,-250.0,0.00012774,2]
[408289566,1773357032254,-334.77,0.00012796,2]
[408289567,1773357032264,-65.82299809,0.0001283,2]
[408289568,1773357032275,-1934.17700191,0.0001283,2]
[408289569,1773357032284,-500.0,0.0001285,2]
[408289570,1773357032294,-150.0,0.00012887,2]
[408289571,1773357032303,-151.0,0.00012888,2]
[408289572,1773357032313,-151.0,0.00012888,2]
[408289573,1773357032322,-151.0,0.00012888,2]
[408289574,1773357032331,-500.0,0.00012888,2]
[408289575,1773357032340,-151.0,0.00012888,2]
[408289576,1773357032350,-500.0,0.00012888,2]
[408289577,1773357032359,-151.0,0.00012888,2]
[408289578,1773357032369,-519.676586,0.00012888,2]
[408289579,1773357032377,-151.0,0.00012888,2]
[408289580,1773357032386,-200.0,0.00012888,2]
[408289581,1773357032395,-151.0,0.00012888,2]
[408289582,1773357032405,-151.0,0.00012888,2]
[408289583,1773357032414,-151.0,0.00012888,2]
[408289585,1773357032424,-151.0,0.00012888,2]
[408289587,1773357032433,-151.0,0.00012888,2]
[408289589,1773357032441,-151.0,0.00012888,2]
[408289591,1773357032451,-151.0,0.00012888,2]
[408289593,1773357032460,-151.0,0.00012888,2]
[408289595,1773357032469,-151.0,0.00012888,2]
[408289597,1773357032478,-151.0,0.00012888,2]
[408289599,1773357032487,-151.0,0.00012888,2]
[408289601,1773357032496,-151.0,0.00012888,2]
[408289603,1773357032505,-151.0,0.00012888,2]
[408289605,1773357032514,-151.0,0.00012888,2]
[408289607,1773357032524,-151.0,0.00012888,2]
[408289609,1773357032533,-151.0,0.00012888,2]
[408289610,1773357032541,-151.0,0.00012888,2]
[408289611,1773357032551,-151.0,0.00012888,2]
[408289612,1773357032560,-151.0,0.00012888,2]
[408289613,1773357032569,-151.0,0.00012888,2]
[408289615,1773357032578,-190.38624722,0.00012888,2]
[408289617,1773357032587,-28453.48,0.00012896,2]
[408289619,1773357032596,-499.46578139,0.0001298,2]
[408289621,1773357032605,-889.15,0.00012981,2]
[408289623,1773357032614,-2368.16517207,0.00013,2]
[408289625,1773357032623,-500.0,0.00013,2]
[408289627,1773357032632,-209.91166782,0.00013,2]
[408289629,1773357032642,-500.0,0.0001302,2]
[408289630,1773357032651,-407.71239442,0.0001302,2]
[408289631,1773357032660,-500.0,0.0001302,2]
[408289632,1773357032670,-500.0,0.0001302,2]
[408289633,1773357032679,-428.14160978,0.0001302,2]
[408289634,1773357032688,-500.0,0.0001302,2]
[408289635,1773357032698,-500.0,0.0001302,2]
[408289636,1773357032707,-500.0,0.0001302,2]
[408289637,1773357032716,-500.0,0.000131,2]
[408289638,1773357032725,-445.92650306,0.000131,2]
[408289639,1773357032735,-500.0,0.000131,2]
[408289640,1773357032744,-500.0,0.000131,2]
[408289641,1773357032754,-164.00773729,0.000131,2]
[408289642,1773357032762,-500.0,0.000131,2]
[408289643,1773357032771,-500.0,0.000131,2]
[408289644,1773357032781,-238.639475,0.00013121,2]
[408289645,1773357032790,-300.0,0.00013121,14]
[408289646,1773357032803,-443.0,0.00013157,2]
[408289647,1773357032813,-1793.0,0.00013179,2]
[408289648,1773357032823,-265.00181675,0.00013184,2]
[408289649,1773357032832,-8595.61221969,0.000132,2]
[408289650,1773357032843,-632.0,0.00013206,2]
[408289651,1773357032851,-266.0,0.00013231,2]
[408289652,1773357032860,-1545.0,0.00013232,2]
[408289653,1773357032871,-401.0,0.00013258,2]
[408289654,1773357032879,-500.0,0.00013267,2]
[408289655,1773357032888,-500.0,0.00013267,2]
[408289656,1773357032897,-284.0,0.00013284,2]
[408289657,1773357032906,-1551.0,0.00013292,2]
[408289658,1773357032915,-436.0,0.00013311,2]
[408289659,1773357032924,-1118.0,0.00013318,2]
[408289660,1773357032933,-283.0,0.00013323,2]
[408289661,1773357032941,-1493.0,0.00013345,2]
[408289662,1773357032950,-424.0,0.00013349,2]
[408289663,1773357032960,-1199.0,0.00013371,2]
[408289664,1773357032969,-1000.0,0.00013398,2]
[408289665,1773357032978,-1262.0,0.00013398,2]
[408289666,1773357032986,-1784.0,0.00013424,2]
[408289667,1773357032995,-200.0,0.00013436,2]
[408289668,1773357033004,-500.0,0.000135,2]
[408289669,1773357033013,-619.71855644,0.000135,2]
[408289670,1773357033022,-165.01569282,0.000135,2]
[408289671,1773357033031,-2600.0,0.000135,4]
[408289672,1773357033040,-984.72,0.00013503,2]
[408289673,1773357033049,-1000.0,0.00013568,2]
[408289674,1773357033058,-1000.0,0.00013568,2]
[408289675,1773357033067,-312.31798352,0.00013568,2]
[408289676,1773357033076,-1000.0,0.00013568,2]
[408289677,1773357033085,-1000.0,0.00013568,2]
[408289678,1773357033095,-1000.0,0.00013568,2]
[408289679,1773357033104,-8178.48,0.00013568,2]
[408289680,1773357033112,-5300.0,0.000136,4]
[408289681,1773357033122,-1000.0,0.00013648,2]
[408289682,1773357033131,-500.0,0.00013648,2]
[408289683,1773357033140,-168.3299599,0.00013648,2]
[408289684,1773357033149,-1000.0,0.00013648,2]
[408289685,1773357033159,-8000.0,0.000137,5]
[408289686,1773357033168,-10700.0,0.000138,5]
[408289687,1773357033177,-2784.97,0.000138,2]
[408289688,1773357033188,-4742.7633,0.000138,2]
[408289689,1773357033198,-3747.38343956,0.00013812,2]
[408289690,1773357033207,-285.01,0.00013835,2]
[408289691,1773357033216,-17555.75664021,0.00013876,2]
[408289692,1773357033226,-13400.0,0.000139,5]
[408289693,1773357033236,-2500.0,0.000139,2]
[408289694,1773357033245,-10142.34873193,0.00013904,2]
[408289695,1773357033255,-1500.0,0.00013946,2]
[408289696,1773357033264,-500.0,0.00013975,2]
[408289697,1773357033273,-500.0,0.00013975,2]
[408289698,1773357033282,-500.0,0.00013975,2]
[408289699,1773357033292,-500.0,0.00013975,2]
[408289700,1773357033303,-500.0,0.00013975,2]
[408289701,1773357033312,-500.0,0.00013975,2]
[408289702,1773357033321,-241.93797996,0.00013975,2]
[408289703,1773357033332,-500.0,0.00013975,2]
[408289704,1773357033343,-500.0,0.00013975,2]
[408289705,1773357033354,-500.0,0.00013975,2]
[408289706,1773357033365,-500.0,0.00013975,2]
[408289707,1773357033375,-224.2357575,0.00013975,2]
[408289708,1773357033384,-14304.46957943,0.00013976,2]
[408289709,1773357033393,-200.0,0.00013984,2]
[408289710,1773357033403,-255.0,0.00013996,2]
[408289711,1773357033413,-4954.7721667,0.00013999,2]
[408289712,1773357033423,-48704.01801344,0.00014,2]
[408289713,1773357033432,-420.0,0.00014011,2]
[408289714,1773357033441,-420.0,0.00014011,2]
[408289715,1773357033450,-500.0,0.00014047,2]
[408289716,1773357033459,-500.0,0.00014047,2]
[408289717,1773357033469,-500.0,0.00014047,2]
[408289718,1773357033479,-500.0,0.00014047,2]
[408289719,1773357033489,-500.0,0.00014047,2]
[408289720,1773357033498,-500.0,0.00014047,2]
[408289721,1773357033507,-500.0,0.00014047,2]
[408289722,1773357033518,-500.0,0.00014047,2]
[408289723,1773357033527,-500.0,0.00014047,2]
[408289724,1773357033536,-500.0,0.00014047,2]
[408289725,1773357033545,-500.0,0.00014047,2]
[408289726,1773357033554,-500.0,0.00014047,2]
[408289727,1773357033564,-500.0,0.00014047,2]
[408289728,1773357033574,-500.0,0.00014047,2]
[408289729,1773357033583,-500.0,0.00014047,2]
[408289730,1773357033592,-500.0,0.00014047,2]
[408289731,1773357033601,-500.0,0.00014047,2]
[408289732,1773357033610,-500.0,0.00014047,2]
[408289733,1773357033619,-500.0,0.00014047,2]
[408289734,1773357033628,-426.82861234,0.00014047,2]
[408289735,1773357033637,-500.0,0.00014047,2]
[408289736,1773357033647,-500.0,0.00014047,2]
[408289737,1773357033656,-500.0,0.00014047,2]
[408289738,1773357033665,-500.0,0.00014047,2]
[408289739,1773357033675,-500.0,0.00014047,2]
[408289740,1773357033684,-500.0,0.00014047,2]
[408289741,1773357033693,-500.0,0.00014047,2]
[408289742,1773357033702,-499.99999999,0.00014047,2]
[408289743,1773357033712,-500.0,0.00014047,2]
[408289744,1773357033721,-500.0,0.00014047,2]
[408289745,1773357033731,-500.0,0.00014047,2]
[408289746,1773357033741,-172.63311067,0.00014047,2]
[408289747,1773357033750,-5000.0,0.00014047,2]
[408289748,1773357033759,-300.0,0.00014047,2]
[408289749,1773357033769,-250.0,0.00014047,2]
[408289750,1773357033778,-500.0,0.00014047,2]
[408289751,1773357033787,-500.0,0.00014047,2]
[408289752,1773357033800,-300.0,0.00014047,2]
[408289753,1773357033810,-287.27422917,0.00014047,2]
[408289754,1773357033820,-300.0,0.00014047,2]
[408289755,1773357033829,-300.0,0.00014047,2]
[408289756,1773357033839,-325.2267,0.00014047,2]
[408289757,1773357033848,-600.0,0.00014047,2]
[408289758,1773357033857,-629.53293618,0.00014047,2]
[408289759,1773357033867,-300.0,0.00014047,2]
[408289760,1773357033876,-600.0,0.00014047,2]
[408289761,1773357033886,-600.0,0.00014047,2]
[408289762,1773357033896,-600.0,0.00014047,2]
[408289763,1773357033906,-5000.0,0.00014047,2]
[408289764,1773357033916,-193.0,0.00014047,2]
[408289765,1773357033925,-5000.0,0.00014047,2]
[408289766,1773357033935,-250.0,0.00014047,2]
[408289767,1773357033945,-1000.0,0.00014048,2]
[408289768,1773357033954,-1680.0,0.0001405,2]
[408289769,1773357033963,-17555.75664013,0.00014051,2]
[408289770,1773357033972,-500.0,0.00014072,2]
[408289771,1773357033982,-500.0,0.00014072,2]
[408289772,1773357033992,-500.0,0.00014072,2]
[408289773,1773357034001,-500.0,0.00014072,2]
[408289774,1773357034011,-645.18548718,0.00014072,2]
[408289775,1773357034020,-500.0,0.00014073,2]
[408289776,1773357034029,-151865.03292677,0.00014076,2]
[408289777,1773357034039,-500.0,0.00014076,2]
[408289778,1773357034050,-595.88,0.00014076,2]
[408289779,1773357034059,-500.0,0.00014076,2]
[408289780,1773357034070,-500.0,0.00014076,2]
[408289781,1773357034079,-510.77,0.00014076,2]
[408289782,1773357034089,-500.0,0.00014076,2]
[408289783,1773357034099,-500.0,0.00014076,2]
[408289784,1773357034108,-500.0,0.00014076,2]
[408289785,1773357034117,-500.0,0.00014076,2]
[408289786,1773357034127,-500.0,0.00014076,2]
[408289787,1773357034137,-22619.8619347,0.00014077,2]
[408289788,1773357034146,-71088.1295225,0.00014077,2]
[408289789,1773357034155,-5158.537378,0.00014077,2]
[408289790,1773357034165,-29462.5140496,0.00014077,2]
[408289791,1773357034174,-5206.92648,0.00014077,2]
[408289792,1773357034184,-292.26772098,0.00014099,2]
[408289793,1773357034193,-173.5733895,0.00014113,2]
[408289794,1773357034203,-1500.0,0.00014116,2]
[408289795,1773357034212,-1393.08543644,0.00014116,2]
[408289796,1773357034222,-860.72006406,0.00014116,2]
[408289797,1773357034230,-500.0,0.00014116,2]
[408289798,1773357034239,-1500.0,0.00014116,2]
[408289799,1773357034248,-3025.36,0.00014137,2]
[408289800,1773357034258,-14304.46957943,0.0001414,2]